[Event "Titled Tuesday Blitz May 2 Late 2023"]
[White "Dobrowolski, Piotr"]
[Black "Fajdetic, Hrvoje"]
[WhiteFideId "1106236"]
[BlackFideId "14501945"]
[WhiteElo "2320"]
[BlackElo "2185"]
[Result "1-0"]
[Round "02"]
[TimeControl "180+2"]
[Date "2023.05.02"]
[WhiteClock "0:00:28"]
[BlackClock "0:00:01"]

1. e4 {[%clk 0:03:00]}  e6 {[%clk 0:02:54]} 2. Nf3 {[%clk 0:03:00]}  d5 {[%clk 0:02:54]} 3. Nc3 {[%clk 0:03:00]}  dxe4 {[%clk 0:02:54]} 4. Nxe4 {[%clk 0:03:00]}  Nd7 {[%clk 0:02:54]} 5. d4 {[%clk 0:03:00]}  Ngf6 {[%clk 0:02:55]} 6. Nxf6+ {[%clk 0:03:01]}  Nxf6 {[%clk 0:02:55]} 7. Bc4 {[%clk 0:03:01]}  c5 {[%clk 0:02:48]} 8. O-O {[%clk 0:03:02]}  cxd4 {[%clk 0:02:48]} 9. Qe2 {[%clk 0:03:02]}  Bc5 {[%clk 0:02:45]} 10. Rd1 {[%clk 0:03:02]}  O-O {[%clk 0:02:43]} 11. Bg5 {[%clk 0:03:01]}  Qc7 {[%clk 0:02:36]} 12. Bxf6 {[%clk 0:02:50]}  gxf6 {[%clk 0:02:37]} 13. Nxd4 {[%clk 0:02:51]}  Qe5 {[%clk 0:02:29]} 14. Qg4+ {[%clk 0:02:30]}  Qg5 {[%clk 0:02:28]} 15. Qe4 {[%clk 0:02:28]}  e5 {[%clk 0:02:00]} 16. Nf3 {[%clk 0:02:18]}  Qg6 {[%clk 0:01:58]} 17. Qd5 {[%clk 0:02:08]}  Bb6 {[%clk 0:01:56]} 18. Bd3 {[%clk 0:02:06]}  Qh6 {[%clk 0:01:44]} 19. a4 {[%clk 0:01:54]}  Rd8 {[%clk 0:01:26]} 20. Qe4 {[%clk 0:01:54]}  Bc7 {[%clk 0:01:19]} 21. a5 {[%clk 0:01:31]}  f5 {[%clk 0:01:09]} 22. Qc4 {[%clk 0:01:30]}  Bd6 {[%clk 0:00:53]} 23. Qh4 {[%clk 0:01:02]}  Qxh4 {[%clk 0:00:48]} 24. Nxh4 {[%clk 0:01:03]}  e4 {[%clk 0:00:42]} 25. Bc4 {[%clk 0:01:01]}  Be7 {[%clk 0:00:40]} 26. Rxd8+ {[%clk 0:00:57]}  Bxd8 {[%clk 0:00:41]} 27. g3 {[%clk 0:00:56]}  Bxh4 {[%clk 0:00:33]} 28. gxh4 {[%clk 0:00:57]}  Be6 {[%clk 0:00:23]} 29. Bxe6 {[%clk 0:00:57]}  fxe6 {[%clk 0:00:24]} 30. Rd1 {[%clk 0:00:58]}  Rf8 {[%clk 0:00:20]} 31. Rd6 {[%clk 0:00:52]}  Rf6 {[%clk 0:00:19]} 32. a6 {[%clk 0:00:50]}  bxa6 {[%clk 0:00:19]} 33. Rxa6 {[%clk 0:00:50]}  Rg6+ {[%clk 0:00:12]} 34. Kf1 {[%clk 0:00:50]}  Rg7 {[%clk 0:00:10]} 35. Rxe6 {[%clk 0:00:49]}  Rb7 {[%clk 0:00:11]} 36. b3 {[%clk 0:00:46]}  Rb5 {[%clk 0:00:09]} 37. Ke2 {[%clk 0:00:42]}  a5 {[%clk 0:00:08]} 38. f4 {[%clk 0:00:38]}  Kf7 {[%clk 0:00:06]} 39. Rh6 {[%clk 0:00:30]}  Kg7 {[%clk 0:00:06]} 40. Ra6 {[%clk 0:00:30]}  Rc5 {[%clk 0:00:05]} 41. c4 {[%clk 0:00:29]}  Kf7 {[%clk 0:00:05]} 42. h5 {[%clk 0:00:29]}  Kg7 {[%clk 0:00:04]} 43. h6+ {[%clk 0:00:29]}  Kf7 {[%clk 0:00:05]} 44. Ke3 {[%clk 0:00:29]}  Kf8 {[%clk 0:00:01]} 45. Kd4 {[%clk 0:00:28]} 1-0


[Site "https://www.chess.com"]

[Event "Titled Tuesday Blitz May 2 Late 2023"]
[White "Naroditsky, Daniel"]
[Black "Bueno, Alfeu Junior Varela"]
[WhiteFideId "2026961"]
[BlackFideId "2108879"]
[WhiteElo "2633"]
[BlackElo "2175"]
[Result "1-0"]
[Round "02"]
[TimeControl "180+2"]
[Date "2023.05.02"]
[WhiteClock "0:02:33"]
[BlackClock "0:00:38"]

1. d4 {[%clk 0:03:00]}  e6 {[%clk 0:02:57]} 2. Nc3 {[%clk 0:03:01]}  d5 {[%clk 0:02:44]} 3. Bf4 {[%clk 0:02:56]}  Bb4 {[%clk 0:02:44]} 4. e3 {[%clk 0:02:55]}  Nf6 {[%clk 0:02:42]} 5. Bd3 {[%clk 0:02:56]}  O-O {[%clk 0:02:41]} 6. Nf3 {[%clk 0:02:56]}  Bxc3+ {[%clk 0:02:40]} 7. bxc3 {[%clk 0:02:56]}  c5 {[%clk 0:02:29]} 8. dxc5 {[%clk 0:02:57]}  Qa5 {[%clk 0:02:22]} 9. O-O {[%clk 0:02:57]}  Qxc5 {[%clk 0:02:19]} 10. Nd4 {[%clk 0:02:56]}  Nc6 {[%clk 0:02:16]} 11. Nb3 {[%clk 0:02:56]}  Qe7 {[%clk 0:02:09]} 12. Bg5 {[%clk 0:02:57]}  h6 {[%clk 0:02:10]} 13. Bh4 {[%clk 0:02:57]}  e5 {[%clk 0:02:08]} 14. c4 {[%clk 0:02:57]}  Be6 {[%clk 0:01:50]} 15. cxd5 {[%clk 0:02:57]}  Bxd5 {[%clk 0:01:51]} 16. c4 {[%clk 0:02:55]}  Be6 {[%clk 0:01:49]} 17. Qe2 {[%clk 0:02:53]}  Rad8 {[%clk 0:01:45]} 18. Rad1 {[%clk 0:02:45]}  Nb4 {[%clk 0:01:37]} 19. Bb1 {[%clk 0:02:45]}  Qc7 {[%clk 0:01:32]} 20. Bxf6 {[%clk 0:02:40]}  gxf6 {[%clk 0:01:27]} 21. Nd2 {[%clk 0:02:41]}  f5 {[%clk 0:01:15]} 22. Qh5 {[%clk 0:02:40]}  Nd3 {[%clk 0:01:03]} 23. Qxh6 {[%clk 0:02:39]}  f6 {[%clk 0:01:00]} 24. Nf3 {[%clk 0:02:38]}  Bxc4 {[%clk 0:00:46]} 25. Qg6+ {[%clk 0:02:38]}  Qg7 {[%clk 0:00:45]} 26. Qxf5 {[%clk 0:02:39]}  Qh7 {[%clk 0:00:40]} 27. Qg4+ {[%clk 0:02:33]}  Qg7 {[%clk 0:00:38]} 28. Qxc4+ {[%clk 0:02:33]} 1-0


[Site "https://www.chess.com"]

[Event "Titled Tuesday Blitz May 2 Late 2023"]
[White "Gerbelli Neto, Eduardo"]
[Black "Tristan, Leonardo"]
[WhiteFideId "2103281"]
[BlackFideId "113816"]
[WhiteElo "2178"]
[BlackElo "2461"]
[Result "0-1"]
[Round "02"]
[TimeControl "180+2"]
[Date "2023.05.02"]
[WhiteClock "0:00:32"]
[BlackClock "0:02:16"]

1. e4 {[%clk 0:03:00]}  d5 {[%clk 0:03:00]} 2. exd5 {[%clk 0:02:59]}  Qxd5 {[%clk 0:03:01]} 3. Nc3 {[%clk 0:02:58]}  Qa5 {[%clk 0:03:01]} 4. Bc4 {[%clk 0:02:58]}  Nf6 {[%clk 0:03:01]} 5. d3 {[%clk 0:02:57]}  Bg4 {[%clk 0:02:59]} 6. f3 {[%clk 0:02:55]}  Bd7 {[%clk 0:02:59]} 7. Qe2 {[%clk 0:02:55]}  e6 {[%clk 0:02:59]} 8. Bd2 {[%clk 0:02:55]}  Qb6 {[%clk 0:02:59]} 9. O-O-O {[%clk 0:02:52]}  Nc6 {[%clk 0:02:59]} 10. Be3 {[%clk 0:02:41]}  Bc5 {[%clk 0:02:59]} 11. Bxc5 {[%clk 0:02:38]}  Qxc5 {[%clk 0:02:59]} 12. Ne4 {[%clk 0:02:29]}  Nxe4 {[%clk 0:02:51]} 13. fxe4 {[%clk 0:02:09]}  Nd4 {[%clk 0:02:49]} 14. Qd2 {[%clk 0:01:20]}  b5 {[%clk 0:02:49]} 15. Bb3 {[%clk 0:01:18]}  a5 {[%clk 0:02:49]} 16. c3 {[%clk 0:01:16]}  Nxb3+ {[%clk 0:02:44]} 17. axb3 {[%clk 0:01:17]}  a4 {[%clk 0:02:43]} 18. b4 {[%clk 0:01:16]}  Qe7 {[%clk 0:02:37]} 19. Nf3 {[%clk 0:01:12]}  c5 {[%clk 0:02:36]} 20. bxc5 {[%clk 0:01:07]}  Qxc5 {[%clk 0:02:36]} 21. d4 {[%clk 0:00:59]}  Qc4 {[%clk 0:02:37]} 22. Ne5 {[%clk 0:00:56]}  Qa2 {[%clk 0:02:37]} 23. Nxd7 {[%clk 0:00:56]}  Kxd7 {[%clk 0:02:37]} 24. d5 {[%clk 0:00:55]}  e5 {[%clk 0:02:37]} 25. Qg5 {[%clk 0:00:46]}  a3 {[%clk 0:02:34]} 26. Qf5+ {[%clk 0:00:45]}  Kd6 {[%clk 0:02:34]} 27. Qf2 {[%clk 0:00:32]}  Qa1+ {[%clk 0:02:15]} 28. Kd2 {[%clk 0:00:32]}  Qxb2+ {[%clk 0:02:16]} 29. Ke1 {[%clk 0:00:32]}  Qxf2+ {[%clk 0:02:16]} 30. Kxf2 {[%clk 0:00:32]}  Rhc8 {[%clk 0:02:16]} 0-1


[Site "https://www.chess.com"]

[Event "Titled Tuesday Blitz May 2 Late 2023"]
[White "Bashkansky, Ethan"]
[Black "Guerra Tulcan, Lenin"]
[WhiteFideId "2071533"]
[BlackFideId "3601382"]
[WhiteElo "2101"]
[BlackElo "2368"]
[Result "1/2-1/2"]
[Round "02"]
[TimeControl "180+2"]
[Date "2023.05.02"]
[WhiteClock "0:00:05"]
[BlackClock "0:00:32"]

1. d4 {[%clk 0:03:00]}  Nf6 {[%clk 0:02:59]} 2. c4 {[%clk 0:03:01]}  c5 {[%clk 0:02:59]} 3. d5 {[%clk 0:03:01]}  b5 {[%clk 0:02:59]} 4. cxb5 {[%clk 0:03:02]}  a6 {[%clk 0:02:59]} 5. bxa6 {[%clk 0:03:03]}  Bxa6 {[%clk 0:03:00]} 6. g3 {[%clk 0:03:03]}  d6 {[%clk 0:03:00]} 7. Bg2 {[%clk 0:03:03]}  g6 {[%clk 0:03:00]} 8. b3 {[%clk 0:03:04]}  Bg7 {[%clk 0:03:00]} 9. Bb2 {[%clk 0:03:05]}  O-O {[%clk 0:03:00]} 10. Nh3 {[%clk 0:03:05]}  Nbd7 {[%clk 0:02:56]} 11. O-O {[%clk 0:03:05]}  Nb6 {[%clk 0:02:56]} 12. Nf4 {[%clk 0:03:02]}  c4 {[%clk 0:02:56]} 13. b4 {[%clk 0:03:01]}  Bb5 {[%clk 0:02:56]} 14. Nc3 {[%clk 0:03:00]}  Qd7 {[%clk 0:02:56]} 15. Nxb5 {[%clk 0:02:52]}  Qxb5 {[%clk 0:02:56]} 16. a3 {[%clk 0:02:50]}  Rfc8 {[%clk 0:02:54]} 17. Rc1 {[%clk 0:02:32]}  g5 {[%clk 0:02:31]} 18. Nh3 {[%clk 0:02:29]}  Nbxd5 {[%clk 0:02:19]} 19. e4 {[%clk 0:02:13]}  g4 {[%clk 0:02:01]} 20. exd5 {[%clk 0:02:04]}  gxh3 {[%clk 0:02:00]} 21. Bxh3 {[%clk 0:02:04]}  Rc7 {[%clk 0:01:56]} 22. Re1 {[%clk 0:01:56]}  Qxd5 {[%clk 0:01:26]} 23. Qxd5 {[%clk 0:01:36]}  Nxd5 {[%clk 0:01:27]} 24. Bxg7 {[%clk 0:01:36]}  Kxg7 {[%clk 0:01:28]} 25. Bg2 {[%clk 0:01:36]}  e6 {[%clk 0:01:28]} 26. Red1 {[%clk 0:01:26]}  Rxa3 {[%clk 0:01:28]} 27. Bxd5 {[%clk 0:01:26]}  exd5 {[%clk 0:01:28]} 28. Rxd5 {[%clk 0:01:26]}  Rd3 {[%clk 0:01:25]} 29. Rxd3 {[%clk 0:01:18]}  cxd3 {[%clk 0:01:26]} 30. Rd1 {[%clk 0:01:14]}  Rc3 {[%clk 0:01:26]} 31. Kg2 {[%clk 0:01:02]}  Kf6 {[%clk 0:01:26]} 32. Kf3 {[%clk 0:00:55]}  Ke5 {[%clk 0:01:20]} 33. Ke3 {[%clk 0:00:54]}  Rb3 {[%clk 0:01:20]} 34. Rxd3 {[%clk 0:00:51]}  Rxb4 {[%clk 0:01:20]} 35. f4+ {[%clk 0:00:47]}  Ke6 {[%clk 0:01:20]} 36. g4 {[%clk 0:00:41]}  Rb2 {[%clk 0:01:16]} 37. h4 {[%clk 0:00:33]}  Rh2 {[%clk 0:01:10]} 38. h5 {[%clk 0:00:33]}  Rh3+ {[%clk 0:00:58]} 39. Ke4 {[%clk 0:00:33]}  Rxd3 {[%clk 0:00:56]} 40. Kxd3 {[%clk 0:00:34]}  Kd5 {[%clk 0:00:53]} 41. Ke3 {[%clk 0:00:12]}  Kc4 {[%clk 0:00:46]} 42. g5 {[%clk 0:00:12]}  Kd5 {[%clk 0:00:36]} 43. f5 {[%clk 0:00:12]}  Ke5 {[%clk 0:00:36]} 44. g6 {[%clk 0:00:05]}  fxg6 {[%clk 0:00:35]} 45. fxg6 {[%clk 0:00:02]}  hxg6 {[%clk 0:00:31]} 46. hxg6 {[%clk 0:00:03]}  Kf6 {[%clk 0:00:31]} 47. Kd4 {[%clk 0:00:03]}  Kxg6 {[%clk 0:00:32]} 48. Kd5 {[%clk 0:00:04]}  Kf7 {[%clk 0:00:32]} 49. Kxd6 {[%clk 0:00:05]} 1/2-1/2


[Site "https://www.chess.com"]

[Event "Titled Tuesday Blitz May 2 Late 2023"]
[White "Ankerst, Mihael"]
[Black "Wieczorek, Oskar"]
[WhiteFideId "14602369"]
[BlackFideId "1133950"]
[WhiteElo "2370"]
[BlackElo "2418"]
[Result "0-1"]
[Round "02"]
[TimeControl "180+2"]
[Date "2023.05.02"]
[WhiteClock "0:00:02"]
[BlackClock "0:01:55"]

1. e4 {[%clk 0:02:57]}  c5 {[%clk 0:02:59]} 2. Nf3 {[%clk 0:02:56]}  e6 {[%clk 0:03:00]} 3. d4 {[%clk 0:02:56]}  cxd4 {[%clk 0:03:01]} 4. Nxd4 {[%clk 0:02:56]}  Nf6 {[%clk 0:03:02]} 5. Nc3 {[%clk 0:02:56]}  d6 {[%clk 0:03:02]} 6. Bc4 {[%clk 0:02:55]}  Be7 {[%clk 0:03:00]} 7. Be3 {[%clk 0:02:50]}  O-O {[%clk 0:02:58]} 8. f4 {[%clk 0:02:50]}  d5 {[%clk 0:02:59]} 9. exd5 {[%clk 0:02:49]}  exd5 {[%clk 0:02:59]} 10. Bb3 {[%clk 0:02:49]}  Nc6 {[%clk 0:02:36]} 11. O-O {[%clk 0:02:46]}  Ng4 {[%clk 0:02:35]} 12. Qd3 {[%clk 0:02:38]}  Nxe3 {[%clk 0:02:29]} 13. Qxe3 {[%clk 0:02:38]}  Bc5 {[%clk 0:02:28]} 14. Nce2 {[%clk 0:02:25]}  Re8 {[%clk 0:02:26]} 15. Qc3 {[%clk 0:02:25]}  Qb6 {[%clk 0:02:26]} 16. Kh1 {[%clk 0:01:52]}  Nxd4 {[%clk 0:02:21]} 17. Nxd4 {[%clk 0:01:47]}  Bxd4 {[%clk 0:02:22]} 18. Qd3 {[%clk 0:01:47]}  Bg4 {[%clk 0:02:14]} 19. c3 {[%clk 0:01:45]}  Be2 {[%clk 0:02:06]} 20. Qxd4 {[%clk 0:01:43]}  Qxd4 {[%clk 0:02:06]} 21. cxd4 {[%clk 0:01:42]}  Bxf1 {[%clk 0:02:07]} 22. Rxf1 {[%clk 0:01:42]}  Re4 {[%clk 0:02:08]} 23. Bxd5 {[%clk 0:01:41]}  Rxd4 {[%clk 0:02:08]} 24. Bxb7 {[%clk 0:01:14]}  Rb8 {[%clk 0:02:08]} 25. Bf3 {[%clk 0:00:19]}  Rxb2 {[%clk 0:02:07]} 26. Rc1 {[%clk 0:00:13]}  g6 {[%clk 0:02:07]} 27. a3 {[%clk 0:00:11]}  Rxf4 {[%clk 0:02:06]} 28. h3 {[%clk 0:00:11]}  Ra4 {[%clk 0:02:06]} 29. Rc3 {[%clk 0:00:10]}  Ra2 {[%clk 0:02:05]} 30. Rc7 {[%clk 0:00:09]}  R4xa3 {[%clk 0:02:03]} 31. Bd5 {[%clk 0:00:09]}  Rf2 {[%clk 0:02:03]} 32. Kg1 {[%clk 0:00:08]}  Rf5 {[%clk 0:02:01]} 33. Be4 {[%clk 0:00:07]}  Re5 {[%clk 0:02:01]} 34. Bf3 {[%clk 0:00:07]}  h5 {[%clk 0:02:00]} 35. Kh2 {[%clk 0:00:06]}  a5 {[%clk 0:02:00]} 36. Kg3 {[%clk 0:00:06]}  Rb3 {[%clk 0:01:59]} 37. Kf4 {[%clk 0:00:06]}  Rf5+ {[%clk 0:01:58]} 38. Ke4 {[%clk 0:00:07]}  Rb4+ {[%clk 0:01:58]} 39. Ke3 {[%clk 0:00:05]}  a4 {[%clk 0:01:58]} 40. Ra7 {[%clk 0:00:05]}  Rb3+ {[%clk 0:01:58]} 41. Ke4 {[%clk 0:00:05]}  a3 {[%clk 0:01:58]} 42. Kd4 {[%clk 0:00:05]}  Rfxf3 {[%clk 0:01:57]} 43. gxf3 {[%clk 0:00:06]}  Rxf3 {[%clk 0:01:57]} 44. h4 {[%clk 0:00:07]}  Rf4+ {[%clk 0:01:57]} 45. Ke5 {[%clk 0:00:08]}  Rxh4 {[%clk 0:01:57]} 46. Kf6 {[%clk 0:00:08]}  Rf4+ {[%clk 0:01:57]} 47. Kg5 {[%clk 0:00:08]}  Rf5+ {[%clk 0:01:58]} 48. Kh6 {[%clk 0:00:08]}  Kf8 {[%clk 0:01:59]} 49. Rxa3 {[%clk 0:00:07]}  h4 {[%clk 0:01:58]} 50. Ra8+ {[%clk 0:00:02]}  Ke7 {[%clk 0:01:58]} 51. Kg7 {[%clk 0:00:03]}  h3 {[%clk 0:01:55]} 52. Ra7+ {[%clk 0:00:02]}  Ke6 {[%clk 0:01:55]} 0-1


[Site "https://www.chess.com"]

[Event "Titled Tuesday Blitz May 2 Late 2023"]
[White "Lenaerts, Lennert"]
[Black "Gatterer, Florian"]
[WhiteFideId "211435"]
[BlackFideId "811688"]
[WhiteElo "2334"]
[BlackElo "2221"]
[Result "1-0"]
[Round "02"]
[TimeControl "180+2"]
[Date "2023.05.02"]
[WhiteClock "0:01:19"]
[BlackClock "0:00:10"]

1. d4 {[%clk 0:02:32]}  d5 {[%clk 0:02:58]} 2. c4 {[%clk 0:02:32]}  c6 {[%clk 0:02:58]} 3. cxd5 {[%clk 0:02:32]}  cxd5 {[%clk 0:02:57]} 4. Bf4 {[%clk 0:02:33]}  Nf6 {[%clk 0:02:57]} 5. Nc3 {[%clk 0:02:33]}  Nc6 {[%clk 0:02:57]} 6. e3 {[%clk 0:02:32]}  Bf5 {[%clk 0:02:57]} 7. Nf3 {[%clk 0:02:25]}  e6 {[%clk 0:02:55]} 8. Qb3 {[%clk 0:02:26]}  Bb4 {[%clk 0:02:55]} 9. Ne5 {[%clk 0:02:26]}  Bxc3+ {[%clk 0:02:36]} 10. bxc3 {[%clk 0:02:27]}  Nxe5 {[%clk 0:02:35]} 11. Bxe5 {[%clk 0:02:28]}  O-O {[%clk 0:02:24]} 12. Be2 {[%clk 0:02:28]}  Ne4 {[%clk 0:02:17]} 13. f3 {[%clk 0:02:15]}  Nd6 {[%clk 0:01:47]} 14. Qb4 {[%clk 0:02:15]}  Nc4 {[%clk 0:01:45]} 15. Bxc4 {[%clk 0:02:14]}  dxc4 {[%clk 0:01:45]} 16. Qxc4 {[%clk 0:02:13]}  Rc8 {[%clk 0:01:39]} 17. Qb4 {[%clk 0:02:13]}  a5 {[%clk 0:01:35]} 18. Qa3 {[%clk 0:02:12]}  Bd3 {[%clk 0:01:33]} 19. Kf2 {[%clk 0:02:11]}  b5 {[%clk 0:01:19]} 20. Rhd1 {[%clk 0:02:07]}  Bc4 {[%clk 0:01:18]} 21. Rac1 {[%clk 0:02:06]}  Qh4+ {[%clk 0:01:08]} 22. Bg3 {[%clk 0:02:06]}  Qd8 {[%clk 0:01:05]} 23. e4 {[%clk 0:02:02]}  f5 {[%clk 0:00:57]} 24. exf5 {[%clk 0:02:02]}  exf5 {[%clk 0:00:57]} 25. Be5 {[%clk 0:02:02]}  f4 {[%clk 0:00:56]} 26. Kg1 {[%clk 0:01:58]}  Qd5 {[%clk 0:00:53]} 27. Re1 {[%clk 0:01:49]}  a4 {[%clk 0:00:51]} 28. Qe7 {[%clk 0:01:45]}  Rf7 {[%clk 0:00:46]} 29. Qg5 {[%clk 0:01:44]}  h6 {[%clk 0:00:44]} 30. Qg4 {[%clk 0:01:42]}  Rcf8 {[%clk 0:00:35]} 31. Re4 {[%clk 0:01:42]}  Bxa2 {[%clk 0:00:33]} 32. Rxf4 {[%clk 0:01:42]}  Bc4 {[%clk 0:00:26]} 33. Ra1 {[%clk 0:01:39]}  Qe6 {[%clk 0:00:23]} 34. Rxf7 {[%clk 0:01:34]}  Rxf7 {[%clk 0:00:21]} 35. Qxe6 {[%clk 0:01:31]}  Bxe6 {[%clk 0:00:21]} 36. Kf2 {[%clk 0:01:31]}  Bd5 {[%clk 0:00:20]} 37. Bd6 {[%clk 0:01:28]}  Rd7 {[%clk 0:00:20]} 38. Bc5 {[%clk 0:01:28]}  Kf7 {[%clk 0:00:16]} 39. Re1 {[%clk 0:01:28]}  Rb7 {[%clk 0:00:13]} 40. Re5 {[%clk 0:01:27]}  Bc4 {[%clk 0:00:13]} 41. d5 {[%clk 0:01:24]}  b4 {[%clk 0:00:11]} 42. Bxb4 {[%clk 0:01:22]}  a3 {[%clk 0:00:11]} 43. Bxa3 {[%clk 0:01:22]}  Rb3 {[%clk 0:00:11]} 44. Bb4 {[%clk 0:01:22]}  Rb2+ {[%clk 0:00:11]} 45. Kg3 {[%clk 0:01:22]}  Re2 {[%clk 0:00:09]} 46. Rxe2 {[%clk 0:01:20]}  Bxe2 {[%clk 0:00:09]} 47. Kf4 {[%clk 0:01:21]}  Bc4 {[%clk 0:00:09]} 48. Ke5 {[%clk 0:01:21]}  Bf1 {[%clk 0:00:09]} 49. g3 {[%clk 0:01:21]}  Be2 {[%clk 0:00:09]} 50. f4 {[%clk 0:01:20]}  g5 {[%clk 0:00:10]} 51. fxg5 {[%clk 0:01:18]}  hxg5 {[%clk 0:00:10]} 52. h4 {[%clk 0:01:19]}  gxh4 {[%clk 0:00:09]} 53. gxh4 {[%clk 0:01:20]}  Bg4 {[%clk 0:00:10]} 54. c4 {[%clk 0:01:19]}  Bh5 {[%clk 0:00:09]} 55. c5 {[%clk 0:01:20]}  Bg4 {[%clk 0:00:09]} 56. c6 {[%clk 0:01:20]}  Bh5 {[%clk 0:00:10]} 57. d6 {[%clk 0:01:20]}  Bg4 {[%clk 0:00:11]} 58. d7 {[%clk 0:01:20]}  Bxd7 {[%clk 0:00:09]} 59. cxd7 {[%clk 0:01:20]}  Kg6 {[%clk 0:00:10]} 60. d8=Q {[%clk 0:01:19]} 1-0


[Site "https://www.chess.com"]

[Event "Titled Tuesday Blitz May 2 Late 2023"]
[White "Silva, Kaua Marques"]
[Black "Adla, Diego"]
[WhiteFideId "22701168"]
[BlackFideId "100072"]
[WhiteElo "2159"]
[BlackElo "2377"]
[Result "0-1"]
[Round "02"]
[TimeControl "180+2"]
[Date "2023.05.02"]
[WhiteClock "0:00:15"]
[BlackClock "0:00:24"]

1. e4 {[%clk 0:02:25]}  e5 {[%clk 0:02:57]} 2. Nc3 {[%clk 0:02:23]}  Nf6 {[%clk 0:02:56]} 3. f4 {[%clk 0:02:24]}  d5 {[%clk 0:02:53]} 4. fxe5 {[%clk 0:02:22]}  Nxe4 {[%clk 0:02:54]} 5. Nf3 {[%clk 0:02:21]}  Be7 {[%clk 0:02:43]} 6. d4 {[%clk 0:02:18]}  c5 {[%clk 0:02:38]} 7. dxc5 {[%clk 0:02:10]}  Nxc3 {[%clk 0:02:34]} 8. bxc3 {[%clk 0:02:11]}  Bxc5 {[%clk 0:02:35]} 9. c4 {[%clk 0:02:08]}  O-O {[%clk 0:02:31]} 10. Qxd5 {[%clk 0:02:08]}  Qb6 {[%clk 0:02:28]} 11. Bd3 {[%clk 0:02:06]}  Nc6 {[%clk 0:02:24]} 12. Bd2 {[%clk 0:02:00]}  Ne7 {[%clk 0:02:15]} 13. Qe4 {[%clk 0:01:55]}  Bf5 {[%clk 0:02:15]} 14. Qe2 {[%clk 0:01:55]}  Rad8 {[%clk 0:02:10]} 15. Bc3 {[%clk 0:01:46]}  Bg6 {[%clk 0:02:05]} 16. h4 {[%clk 0:01:43]}  Nf5 {[%clk 0:01:55]} 17. Rh3 {[%clk 0:01:33]}  h5 {[%clk 0:01:47]} 18. Ng5 {[%clk 0:01:28]}  Bd4 {[%clk 0:01:42]} 19. Bxd4 {[%clk 0:01:26]}  Qxd4 {[%clk 0:01:38]} 20. Rd1 {[%clk 0:01:26]}  Qf4 {[%clk 0:01:27]} 21. Qf3 {[%clk 0:01:21]}  Qxe5+ {[%clk 0:01:24]} 22. Kf2 {[%clk 0:01:19]}  Rfe8 {[%clk 0:01:17]} 23. Kg1 {[%clk 0:01:18]}  Nxh4 {[%clk 0:01:08]} 24. Rxh4 {[%clk 0:01:11]}  Qxg5 {[%clk 0:01:06]} 25. Rf4 {[%clk 0:01:10]}  Bxd3 {[%clk 0:01:04]} 26. cxd3 {[%clk 0:01:06]}  f6 {[%clk 0:01:02]} 27. Re4 {[%clk 0:00:59]}  Rxe4 {[%clk 0:01:00]} 28. Qxe4 {[%clk 0:01:00]}  Qg4 {[%clk 0:00:53]} 29. Qxg4 {[%clk 0:00:55]}  hxg4 {[%clk 0:00:51]} 30. Kf2 {[%clk 0:00:55]}  Kf7 {[%clk 0:00:46]} 31. Ke3 {[%clk 0:00:56]}  f5 {[%clk 0:00:45]} 32. a4 {[%clk 0:00:48]}  b6 {[%clk 0:00:44]} 33. a5 {[%clk 0:00:46]}  Kf6 {[%clk 0:00:43]} 34. axb6 {[%clk 0:00:45]}  axb6 {[%clk 0:00:44]} 35. d4 {[%clk 0:00:41]}  g5 {[%clk 0:00:42]} 36. g3 {[%clk 0:00:38]}  f4+ {[%clk 0:00:36]} 37. gxf4 {[%clk 0:00:37]}  Re8+ {[%clk 0:00:37]} 38. Kd3 {[%clk 0:00:35]}  gxf4 {[%clk 0:00:38]} 39. d5 {[%clk 0:00:32]}  f3 {[%clk 0:00:32]} 40. d6 {[%clk 0:00:30]}  Kf5 {[%clk 0:00:31]} 41. d7 {[%clk 0:00:28]}  Rd8 {[%clk 0:00:30]} 42. Ke3 {[%clk 0:00:29]}  Ke6 {[%clk 0:00:28]} 43. Kf4 {[%clk 0:00:26]}  Rxd7 {[%clk 0:00:28]} 44. Re1+ {[%clk 0:00:26]}  Kd6 {[%clk 0:00:25]} 45. Kxg4 {[%clk 0:00:26]}  Rf7 {[%clk 0:00:25]} 46. Kg3 {[%clk 0:00:14]}  Kc5 {[%clk 0:00:24]} 47. Rc1 {[%clk 0:00:15]}  f2 {[%clk 0:00:24]} 48. Kg2 {[%clk 0:00:15]}  f1=Q+ {[%clk 0:00:24]} 0-1


[Site "https://www.chess.com"]